bitfinex/quotes_BTCUSD_20241119
["timestamp","ask_amount","ask_price","bid_price","bid_amount"]
[1732050427593,0.10906255,92326.0,92317.0,0.032496]
[1732050427594,0.12876473,92326.0,92317.0,0.032496]
[1732050427837,0.12876473,92326.0,92307.0,7.101e-05]
[1732050427838,0.108317,92321.0,92307.0,0.00997971]
[1732050428056,0.12802018,92320.0,92314.0,0.064994]
[1732050428263,0.01970218,92320.0,92307.0,7.101e-05]
[1732050428515,0.10906255,92326.0,92315.0,0.0020269]
[1732050428516,0.01970218,92319.0,92315.0,0.0020269]
[1732050428730,0.108322,92317.0,92307.0,7.101e-05]
[1732050428980,0.216646,92317.0,92307.0,7.101e-05]
[1732050429204,0.108332,92308.0,92307.0,7.101e-05]
[1732050429725,0.15958513,92308.0,92307.0,7.101e-05]
[1732050430395,0.16958513,92308.0,92307.0,7.101e-05]
[1732050430826,0.16958513,92308.0,92295.0,0.0017132]
[1732050430827,0.251347,92296.0,92295.0,0.0017132]
[1732050431068,0.39194994,92296.0,92295.0,0.0017132]
[1732050431289,0.5217758,92296.0,92295.0,0.0017132]
[1732050431528,0.38012229,92296.0,92295.0,0.0017132]
[1732050431956,0.28012229,92296.0,92295.0,0.0017132]
[1732050432175,0.38012229,92296.0,92295.0,0.0017132]
[1732050432387,0.36040955,92296.0,92295.0,0.0017132]
[1732050432591,0.39384956,92296.0,92295.0,0.0017132]
[1732050433032,0.10906255,92296.0,92295.0,0.0017132]
[1732050433656,0.21740955,92296.0,92295.0,0.0017132]
[1732050434513,0.10906255,92296.0,92295.0,0.0017132]
[1732050434728,0.10906255,92296.0,92295.0,0.0342172]
[1732050434947,0.10906255,92296.0,92295.0,0.00390001]
[1732050435166,0.21740955,92296.0,92295.0,0.00390001]
[1732050435386,0.39407748,92296.0,92295.0,0.0017132]
[1732050435639,0.39407748,92296.0,92254.0,0.03031467]
[1732050435640,0.01,92258.0,92254.0,0.0017072]
[1732050435893,0.38826405,92258.0,92254.0,0.0017072]
[1732050436141,0.31745355,92258.0,92257.0,0.0221216]
[1732050436362,0.31745355,92258.0,92257.0,0.0200227]
[1732050436836,0.047,92269.0,92258.0,0.032517]
[1732050437062,0.0756,92284.0,92257.0,0.0200227]
[1732050437290,0.10906255,92283.0,92278.0,0.03251]
[1732050437537,0.0591,92293.0,92263.0,0.032515]
[1732050437746,0.108364,92282.0,92274.0,0.032511]
[1732050437961,0.32576555,92292.0,92271.0,0.032512]
[1732050438166,0.216708,92290.0,92275.0,0.0020754]
[1732050438463,0.0591,92293.0,92257.0,0.0200227]
[1732050438464,0.10906255,92289.0,92257.0,0.0298721]
[1732050438676,0.10836,92285.0,92276.0,0.032511]
[1732050438887,0.216715,92287.0,92257.0,0.0200227]
[1732050438888,0.10906255,92284.0,92280.0,0.032509]
[1732050439111,0.10906255,92284.0,92268.0,0.032513]
[1732050439112,0.14303028,92284.0,92268.0,0.032513]
[1732050439352,0.14303028,92284.0,92269.0,0.00208323]
[1732050439353,0.01,92282.0,92269.0,0.00208323]
[1732050439593,0.023,92283.0,92269.0,0.00208323]
[1732050439594,0.118377,92270.0,92269.0,0.00208323]
[1732050439837,0.108386,92263.0,92257.0,0.0525397]
[1732050440060,0.03396773,92270.0,92257.0,0.0200227]
[1732050440271,0.03396773,92270.0,92258.0,0.0020797]
[1732050440272,0.10906255,92262.0,92258.0,0.0020797]
[1732050440486,0.21744955,92262.0,92258.0,0.0020797]
[1732050440699,0.108389,92260.0,92257.0,0.0200227]
[1732050440912,0.108391,92258.0,92257.0,0.0200227]
[1732050441131,0.21745355,92258.0,92257.0,0.0200227]
[1732050441996,0.216762,92267.0,92257.0,0.0200227]
[1732050442236,0.10906255,92261.0,92257.0,0.0200227]
[1732050442449,0.108391,92258.0,92257.0,0.0200227]
[1732050442689,0.21745355,92258.0,92257.0,0.02548759]
[1732050442898,0.36045355,92258.0,92257.0,0.0200227]
[1732050443372,0.51043677,92258.0,92257.0,0.0200227]
[1732050443629,0.251398,92252.0,92251.0,0.0004]
[1732050443842,0.39442828,92252.0,92251.0,0.0004]
[1732050444296,0.03281549,92258.0,92251.0,0.0004]
[1732050444504,0.01,92262.0,92251.0,0.0004]
[1732050444505,0.10906255,92252.0,92251.0,0.0004]
[1732050444928,0.22746055,92252.0,92251.0,0.0004]
[1732050445162,0.10906255,92252.0,92251.0,0.0004]
[1732050445407,0.0459,92263.0,92257.0,0.032517]
[1732050445622,0.11,92270.0,92251.0,0.0004]
[1732050445623,0.10906255,92262.0,92252.0,0.032519]
[1732050445862,0.10906255,92262.0,92258.0,0.00205539]
[1732050446121,0.10906255,92262.0,92251.0,0.0004]
[1732050446122,0.10906255,92262.0,92255.0,0.032518]
[1732050446352,0.01,92259.0,92256.0,0.002058]
[1732050446568,0.10906255,92258.0,92251.0,0.0004]
[1732050446779,0.10906255,92258.0,92257.0,0.032517]
[1732050447009,0.01,92267.0,92257.0,0.032517]
[1732050447228,0.216752,92272.0,92251.0,0.0004]
[1732050447229,0.118398,92252.0,92251.0,0.0004]
[1732050447443,0.23746055,92252.0,92251.0,0.0004]
[1732050447680,0.33746055,92252.0,92251.0,0.0004]
[1732050448328,0.38815321,92252.0,92251.0,0.0004]
[1732050448811,0.41948919,92252.0,92251.0,0.0004]
[1732050449044,0.41948919,92252.0,92231.0,0.0004]
[1732050449045,0.01,92244.0,92231.0,0.0004]
[1732050449260,0.36047055,92244.0,92231.0,0.0004]
[1732050449501,0.36047055,92244.0,92218.0,0.0140285]
[1732050449502,0.043,92219.0,92218.0,0.0140285]
[1732050449721,0.36049955,92219.0,92218.0,0.0140285]
[1732050449932,0.39183553,92219.0,92218.0,0.0140285]
[1732050450430,0.296556,92203.0,92143.0,8e-05]
[1732050450673,0.38261855,92203.0,92179.0,0.032545]
[1732050450881,0.40561855,92203.0,92179.0,0.032545]
[1732050451100,0.40561855,92203.0,92183.0,0.032543]
[1732050451345,0.40561855,92203.0,92158.0,0.0790539]
[1732050451346,0.40561855,92203.0,92172.0,0.032547]
[1732050451583,0.39561855,92203.0,92175.0,0.032546]
[1732050451795,0.40561855,92203.0,92175.0,0.032546]
[1732050452255,0.37261855,92203.0,92164.0,0.0334039]
[1732050452509,0.10906255,92203.0,92191.0,0.03294]
[1732050452734,0.21751855,92203.0,92196.0,0.032539]
[1732050452963,0.10906255,92203.0,92196.0,0.032539]
[1732050453216,0.10906255,92203.0,92198.0,0.032538]
[1732050453453,0.01,92207.0,92202.0,0.00289229]
[1732050453690,0.108454,92205.0,92202.0,0.0008539]
[1732050453913,0.01,92207.0,92203.0,0.00203709]
[1732050454132,0.216898,92209.0,92202.0,0.0008539]
[1732050454133,0.108456,92203.0,92202.0,0.0008539]
[1732050454344,0.21751855,92203.0,92202.0,0.0008539]
[1732050455298,0.108456,92203.0,92202.0,0.0008539]
[1732050455532,0.108456,92203.0,92202.0,0.00111862]
[1732050455533,0.10906255,92203.0,92202.0,0.00111862]
[1732050455780,0.01,92210.0,92191.0,0.0004]
[1732050456002,0.01,92210.0,92202.0,0.032537]
[1732050456003,0.108451,92208.0,92202.0,0.032537]
[1732050456238,0.108451,92208.0,92201.0,0.032537]
[1732050456483,0.01,92214.0,92191.0,0.0004]
[1732050456701,0.01,92214.0,92202.0,0.00203839]
[1732050456926,0.11906255,92213.0,92202.0,0.01]
[1732050457148,0.01,92210.0,92202.0,0.01]
[1732050457370,0.226888,92214.0,92202.0,0.01]
[1732050457587,0.01,92210.0,92205.0,0.032535]
[1732050457797,0.01,92210.0,92202.0,0.01]
[1732050458034,0.01,92210.0,92203.0,0.032536]
[1732050458244,0.01,92210.0,92205.0,0.032536]
[1732050458463,0.01,92214.0,92202.0,0.01]
[1732050458714,0.10906255,92220.0,92214.0,0.032532]
[1732050458987,0.10906255,92220.0,92202.0,0.1]
[1732050458988,0.216859,92226.0,92202.0,0.1]
[1732050458989,0.1,92226.0,92213.0,0.032533]
[1732050459196,0.01,92224.0,92203.0,0.032536]
[1732050459437,0.01,92218.0,92214.0,0.032532]
[1732050459675,0.01,92218.0,92211.0,0.032533]
[1732050460141,0.01,92224.0,92203.0,0.032536]
[1732050460374,0.01,92243.0,92204.0,0.10906255]
[1732050460594,0.226809,92247.0,92204.0,0.10906255]
[1732050460595,0.01,92238.0,92204.0,0.10906255]
[1732050460810,0.01,92238.0,92205.0,0.032536]
[1732050461031,0.01,92237.0,92206.0,0.10906255]
[1732050461273,0.10842,92234.0,92229.0,0.032527]
[1732050461517,0.216835,92236.0,92206.0,0.10906255]
[1732050461518,0.0017172,92212.0,92211.0,0.032534]
[1732050464327,0.0017172,92212.0,92211.0,0.14159655]
[1732050464549,2e-07,92212.0,92211.0,0.46693655]
[1732050465752,0.01,92267.0,92266.0,0.032514]
[1732050465969,0.11906255,92267.0,92266.0,0.032514]
[1732050466205,0.10906255,92267.0,92266.0,0.032514]
[1732050466934,0.01,92265.0,92264.0,0.032515]
[1732050467168,0.03284027,92267.0,92266.0,0.032514]
[1732050467381,0.02,92268.0,92267.0,0.032514]
[1732050467595,0.03847085,92269.0,92268.0,0.032513]
[1732050467905,0.03847085,92269.0,92268.0,0.0422671]
[1732050468137,0.01,92269.0,92268.0,0.0422671]
[1732050468385,0.01,92272.0,92268.0,0.0422671]
[1732050468596,0.01,92269.0,92268.0,0.0422671]
[1732050468810,0.01,92262.0,92228.0,0.032528]
[1732050469031,0.01,92262.0,92258.0,0.032517]
[1732050469032,0.11906255,92261.0,92258.0,0.032517]
[1732050469256,0.11906255,92261.0,92190.0,0.032541]
[1732050469257,0.01,92253.0,92190.0,0.032541]
[1732050469496,0.03284027,92269.0,92190.0,0.032541]
[1732050469497,0.01,92242.0,92238.0,0.032524]
[1732050469749,0.01,92242.0,92239.0,0.032524]
[1732050469969,0.10906255,92241.0,92240.0,0.032523]
[1732050472287,0.003,92252.0,92247.0,0.032521]
[1732050472505,0.02755887,92253.0,92252.0,0.032519]
[1732050472978,0.03284027,92260.0,92234.0,0.0098991]
[1732050473191,0.02778351,92261.0,92234.0,0.0098991]
[1732050473436,0.02778351,92261.0,92260.0,0.032516]
[1732050473655,0.10906255,92261.0,92260.0,0.032516]
[1732050473875,0.10906255,92261.0,92224.0,0.10906255]
[1732050473876,0.01,92256.0,92252.0,0.032519]
[1732050474117,0.01,92242.0,92228.0,0.021685]
[1732050474388,0.01,92242.0,92212.0,0.0008586]
[1732050474389,0.11906255,92241.0,92235.0,0.021683]
[1732050474609,0.11906255,92241.0,92238.0,0.021683]
[1732050474845,0.11906255,92241.0,92237.0,0.021683]
[1732050475066,0.11906255,92241.0,92235.0,0.043366]
[1732050475303,0.01,92240.0,92222.0,0.0315772]
[1732050475553,0.10906255,92239.0,92235.0,0.043366]
[1732050475761,0.10906255,92239.0,92236.0,0.021683]
[1732050476204,0.10906255,92239.0,92223.0,0.021686]
[1732050476205,0.10906255,92239.0,92229.0,0.021685]
[1732050476456,0.01,92236.0,92228.0,0.021685]
[1732050476735,0.10906255,92235.0,92231.0,0.021684]
[1732050476953,0.10906255,92235.0,92232.0,0.021684]
[1732050477173,0.10906255,92235.0,92232.0,0.368638]
[1732050477412,0.118421,92233.0,92232.0,0.32527]
[1732050477662,0.22748355,92233.0,92232.0,0.32527]
[1732050477878,0.23748355,92233.0,92232.0,0.32527]
[1732050478545,0.49278355,92233.0,92232.0,0.32527]
[1732050478757,0.54537923,92233.0,92232.0,0.32527]
[1732050479195,0.57426301,92233.0,92232.0,0.32527]
[1732050479657,0.48278355,92233.0,92232.0,0.32527]
[1732050479887,0.47278355,92233.0,92232.0,0.32527]
[1732050480104,0.48278355,92233.0,92232.0,0.32527]
[1732050480331,0.37436255,92233.0,92232.0,0.32527]
[1732050480794,0.27506255,92233.0,92232.0,0.32527]
[1732050481000,0.17506255,92233.0,92232.0,0.32527]
[1732050481207,0.17406255,92233.0,92232.0,0.32527]
[1732050481424,0.16406255,92233.0,92232.0,0.346954]
[1732050482065,0.17406255,92233.0,92232.0,0.32527]
[1732050482275,0.16406255,92233.0,92232.0,0.346954]
[1732050482489,0.17406255,92233.0,92232.0,0.32527]
[1732050482924,0.17406255,92233.0,92232.0,0.346954]
[1732050483074,0.01,92233.0,92232.0,0.346954]
[1732050483288,0.01,92235.0,92234.0,0.021683]
[1732050483501,0.11906255,92235.0,92234.0,0.021683]
[1732050484320,0.11906255,92235.0,92234.0,0.021643]
[1732050484818,0.01,92235.0,92234.0,0.021643]
[1732050485767,0.01,92246.0,92232.0,0.32527]
[1732050485768,0.01,92243.0,92242.0,0.021682]
[1732050485995,0.01,92258.0,92257.0,0.021678]
[1732050486189,0.02,92259.0,92258.0,0.021678]
[1732050486631,0.01,92259.0,92258.0,0.0281816]
[1732050486800,0.02,92259.0,92258.0,0.0281816]
[1732050487001,0.02,92259.0,92258.0,0.0065036]
[1732050487279,0.04006255,92263.0,92258.0,0.021678]
[1732050487479,0.04006255,92263.0,92257.0,0.021678]
[1732050487696,0.04006255,92263.0,92261.0,0.021677]
[1732050487880,0.04006255,92263.0,92258.0,0.02]
[1732050488076,0.04006255,92263.0,92262.0,0.021677]
[1732050488494,0.04006255,92263.0,92258.0,0.02]
[1732050488712,0.07131948,92263.0,92258.0,0.02]
[1732050489144,0.03125693,92262.0,92258.0,0.02]
[1732050489357,0.10906255,92261.0,92258.0,0.02]
[1732050490264,0.03125693,92260.0,92258.0,0.02]
[1732050490520,0.10906255,92259.0,92258.0,0.02]
[1732050490751,0.10906255,92259.0,92258.0,0.041678]
[1732050491618,0.14338466,92259.0,92258.0,0.02]
[1732050491822,0.25177466,92259.0,92258.0,0.02]
[1732050492025,0.14338466,92259.0,92258.0,0.02]
[1732050492430,0.25177466,92259.0,92258.0,0.02]
[1732050492634,0.21745255,92259.0,92258.0,0.02]
[1732050494376,0.02868003,92264.0,92258.0,0.04]
[1732050494601,0.10906255,92263.0,92258.0,0.04]
[1732050494811,0.21744855,92263.0,92258.0,0.04]
[1732050495043,0.325159,92262.0,92258.0,0.04]
[1732050495256,0.10839,92259.0,92258.0,0.04]
[1732050495517,0.21745255,92259.0,92258.0,0.04]
[1732050495756,0.21745255,92259.0,92244.0,0.0099886]
[1732050495757,0.108406,92245.0,92244.0,0.0099886]
[1732050495993,0.108406,92245.0,92201.0,0.0008586]
[1732050495994,0.108421,92233.0,92201.0,0.0008586]
[1732050496185,0.21748355,92233.0,92212.0,0.0225476]
[1732050496395,0.25180566,92233.0,92212.0,0.0008586]
[1732050496812,0.21748355,92233.0,92212.0,0.0008586]
[1732050497263,0.27480566,92233.0,92212.0,0.0008586]
[1732050497714,0.27480566,92233.0,92212.0,0.0225476]
[1732050497715,0.21748355,92233.0,92212.0,0.0225476]
[1732050497911,0.21748355,92233.0,92212.0,0.0008586]
[1732050498137,0.21748355,92233.0,92232.0,0.0208584]
[1732050498578,0.34048355,92233.0,92232.0,0.0208584]
[1732050498800,0.38007179,92233.0,92232.0,0.0208584]
[1732050499021,0.41056056,92233.0,92232.0,0.0208584]
[1732050499227,0.35048355,92233.0,92232.0,0.0208584]
[1732050500347,0.35048355,92233.0,92200.0,0.07755482]
[1732050500348,0.108458,92201.0,92200.0,0.07755482]
[1732050500595,0.108458,92201.0,92164.0,0.0008539]
[1732050500596,0.108492,92172.0,92164.0,0.0008539]
[1732050500790,0.1,92193.0,92164.0,0.0008539]
[1732050501009,0.10906255,92192.0,92187.0,0.021694]
[1732050501214,0.216871,92221.0,92192.0,0.021693]
[1732050501215,0.10906255,92200.0,92192.0,0.021693]
[1732050501426,0.216922,92199.0,92191.0,0.021694]
[1732050501650,0.108464,92196.0,92189.0,0.021694]
[1732050501863,0.108458,92202.0,92177.0,0.01]
[1732050502102,0.21752055,92202.0,92195.0,0.021692]
[1732050502330,0.0469,92217.0,92185.0,0.01]
[1732050502331,0.02455988,92210.0,92185.0,0.01]
[1732050502576,0.02455988,92210.0,92177.0,0.0098305]
[1732050502577,0.216908,92205.0,92197.0,0.021692]
[1732050502786,0.216908,92205.0,92177.0,0.10906255]
[1732050502787,0.21691,92204.0,92192.0,0.021693]
[1732050502983,0.21691,92204.0,92177.0,0.10906255]
[1732050502984,0.1454242,92204.0,92177.0,0.0098556]
[1732050503231,0.108456,92203.0,92188.0,0.021694]
[1732050503470,0.216906,92206.0,92177.0,0.01]
[1732050503471,0.02849881,92205.0,92177.0,0.01]
[1732050503690,0.108455,92204.0,92198.0,0.021692]
[1732050503919,0.108455,92204.0,92186.0,0.021695]
[1732050503920,0.10906255,92205.0,92177.0,0.11906255]
[1732050504152,0.108456,92203.0,92197.0,0.021692]
[1732050504375,0.10906255,92205.0,92198.0,0.021692]
[1732050504635,0.108456,92203.0,92196.0,0.021692]
[1732050504868,0.21751655,92205.0,92193.0,0.021693]
[1732050505080,0.13676456,92205.0,92178.0,0.021697]
[1732050505329,0.13676456,92205.0,92179.0,0.021696]
[1732050505549,0.108443,92214.0,92208.0,0.02169]
[1732050505811,0.02883667,92209.0,92206.0,0.02169]
[1732050506039,0.108405,92246.0,92203.0,0.01]
[1732050506295,0.0461,92247.0,92222.0,0.021686]
[1732050506296,0.108408,92244.0,92222.0,0.021686]
[1732050506503,0.0461,92247.0,92222.0,0.021686]
[1732050506504,0.21682,92242.0,92224.0,0.021686]
[1732050506713,0.0461,92247.0,92203.0,0.11906255]
[1732050506714,0.108414,92239.0,92234.0,0.021683]
[1732050506929,0.108414,92239.0,92214.0,0.0775]
[1732050506930,0.0564,92265.0,92218.0,0.01]
[1732050507157,0.108407,92245.0,92239.0,0.021682]
[1732050507365,0.32586155,92251.0,92243.0,0.021681]
[1732050507629,0.09488388,92286.0,92218.0,0.11906255]
[1732050507630,0.216742,92276.0,92250.0,0.02168]
[1732050507873,0.216742,92276.0,92245.0,0.0775]
[1732050507874,0.02986292,92262.0,92245.0,0.0775]
[1732050508080,0.0017076,92262.0,92245.0,0.0775]
[1732050508260,0.14458298,92261.0,92255.0,0.021678]
[1732050508490,0.03619498,92261.0,92246.0,0.021681]
[1732050508728,0.03619498,92261.0,92257.0,0.021678]
[1732050509190,0.0017076,92262.0,92258.0,0.021678]
[1732050509396,0.0017076,92262.0,92260.0,0.021677]
[1732050509397,0.03790258,92262.0,92260.0,0.021677]
[1732050509635,0.03790258,92262.0,92258.0,0.043356]
[1732050509893,0.03790258,92262.0,92259.0,0.021677]
[1732050510095,0.03790258,92262.0,92261.0,0.021677]
[1732050510403,0.0017076,92262.0,92261.0,0.021677]
[1732050511549,0.03790258,92262.0,92245.0,0.0775]
[1732050511772,0.10906255,92261.0,92249.0,0.02168]
[1732050511972,0.0017076,92262.0,92245.0,0.0775]
[1732050512177,0.0017076,92262.0,92261.0,0.021677]
[1732050514018,0.0017076,92262.0,92259.0,0.021677]
[1732050514019,0.108388,92261.0,92258.0,0.0008538]
[1732050514220,0.10839,92259.0,92258.0,0.0008538]
[1732050514457,0.21745255,92259.0,92258.0,0.0008538]
[1732050514691,0.25138654,92259.0,92258.0,0.0008538]
[1732050515366,0.39438654,92259.0,92258.0,0.0008538]
[1732050515596,0.42738732,92259.0,92258.0,0.0008538]
[1732050516058,0.42938732,92259.0,92258.0,0.0008538]
[1732050517225,0.37438654,92259.0,92258.0,0.0008538]
[1732050517497,0.13206255,92259.0,92258.0,0.0008538]
[1732050517730,0.24045255,92259.0,92258.0,0.0008538]
[1732050517947,0.10906255,92259.0,92258.0,0.0008538]
[1732050518167,0.0017076,92262.0,92258.0,0.0008538]
[1732050518382,0.10906255,92261.0,92258.0,0.0008538]
[1732050518625,0.10839,92259.0,92258.0,0.0008538]
[1732050519025,0.10906255,92259.0,92258.0,0.0008538]
[1732050519347,0.25138654,92259.0,92258.0,0.0008538]
[1732050520238,0.27438654,92259.0,92258.0,0.0008538]
[1732050520446,0.45698732,92259.0,92258.0,0.0008538]
[1732050520677,0.46698732,92259.0,92258.0,0.0008538]
[1732050520917,0.46698732,92259.0,92224.0,0.01]
[1732050520918,0.216849,92230.0,92224.0,0.01]
[1732050521147,0.108424,92230.0,92224.0,0.01]
[1732050521385,0.10906255,92250.0,92224.0,0.01]
[1732050521591,0.108423,92231.0,92230.0,0.00176888]
[1732050522278,0.21748555,92231.0,92230.0,0.00176888]
[1732050525172,0.27489142,92231.0,92230.0,0.00176888]
[1732050526270,0.30882541,92231.0,92230.0,0.00176888]
[1732050526479,0.30882541,92231.0,92214.0,0.0008542]
[1732050526480,0.023,92218.0,92214.0,0.0008542]
[1732050526691,0.01,92219.0,92214.0,0.0008542]
[1732050526692,0.233442,92215.0,92214.0,0.0008542]
[1732050526909,0.34250455,92215.0,92214.0,0.0008542]
[1732050527324,0.37443854,92215.0,92214.0,0.0008542]
[1732050527534,0.24050455,92215.0,92214.0,0.0008542]
[1732050528194,0.10906255,92215.0,92214.0,0.0008542]
[1732050528405,0.216857,92227.0,92214.0,0.0008542]
[1732050528406,0.216858,92226.0,92214.0,0.0008542]
[1732050528630,0.216851,92230.0,92214.0,0.0008542]
[1732050528631,0.03479366,92220.0,92214.0,0.0008542]
[1732050528877,0.10906255,92225.0,92214.0,0.0008542]
[1732050528878,0.21750055,92219.0,92214.0,0.0008542]
[1732050529085,0.108441,92216.0,92214.0,0.0008542]
[1732050529289,0.108438,92218.0,92214.0,0.0008542]
[1732050529520,0.10844,92217.0,92214.0,0.0008542]
[1732050529735,0.10906255,92218.0,92214.0,0.0008542]
[1732050529971,0.21750155,92218.0,92214.0,0.0008542]
[1732050530215,0.316837,92235.0,92216.0,0.021688]
[1732050530441,0.10906255,92223.0,92216.0,0.021688]
[1732050530651,0.10906255,92223.0,92217.0,0.00542302]
[1732050530852,0.108437,92220.0,92217.0,0.00542302]
[1732050531076,0.10906255,92223.0,92217.0,0.00542302]
[1732050531334,0.10906255,92223.0,92214.0,0.0108542]
[1732050531531,0.108434,92222.0,92214.0,0.0108542]
[1732050531744,0.10906255,92223.0,92214.0,0.0108542]
[1732050531957,0.108437,92220.0,92214.0,0.0325422]
[1732050532167,0.108438,92219.0,92214.0,0.0325422]
[1732050532376,0.216877,92218.0,92215.0,0.00542312]
[1732050532582,0.216877,92218.0,92214.0,0.0108542]
[1732050532583,0.32594155,92217.0,92214.0,0.0108542]
[1732050532787,0.108442,92215.0,92214.0,0.0108542]
[1732050532998,0.21750455,92215.0,92214.0,0.0108542]
[1732050533415,0.25143854,92215.0,92214.0,0.0108542]
[1732050534530,0.16599654,92215.0,92196.0,0.0098609]
[1732050534725,0.108458,92201.0,92196.0,0.0098609]
[1732050535157,0.108458,92201.0,92191.0,0.043386]
[1732050535378,0.108458,92201.0,92191.0,0.021693]
[1732050535597,0.108458,92201.0,92191.0,0.043386]
[1732050535825,0.108458,92201.0,92191.0,0.021693]
[1732050536026,0.108458,92201.0,92200.0,0.11]
[1732050536246,0.216914,92203.0,92200.0,0.11]
[1732050536247,0.108456,92204.0,92200.0,0.11]
[1732050536477,0.108458,92201.0,92200.0,0.11]
[1732050538247,0.32597655,92203.0,92171.0,0.06573486]
[1732050538248,0.10906255,92203.0,92171.0,0.06573486]
[1732050538494,0.10906255,92203.0,92190.0,0.021694]
[1732050538495,0.108462,92198.0,92190.0,0.021694]
[1732050538720,0.216915,92202.0,92190.0,0.021694]
[1732050538928,0.32597755,92202.0,92173.0,0.021698]
[1732050539146,0.108461,92199.0,92191.0,0.021693]
[1732050539346,0.108461,92199.0,92191.0,0.043387]
[1732050539551,0.108463,92198.0,92191.0,0.021693]
[1732050540007,0.10846,92200.0,92192.0,0.021693]
[1732050540225,0.10906255,92202.0,92179.0,0.0099483]
[1732050540467,0.03488689,92203.0,92202.0,0.021691]
[1732050540915,0.216889,92214.0,92202.0,0.021691]
[1732050540916,0.216889,92214.0,92204.0,0.02169]
[1732050541141,0.03471796,92214.0,92213.0,0.021688]
[1732050541347,0.03471796,92214.0,92211.0,0.021689]
[1732050541565,0.043355,92216.0,92214.0,0.021688]
[1732050541784,0.043355,92216.0,92215.0,0.021688]
[1732050541997,0.108435,92221.0,92215.0,0.021688]
[1732050542229,0.108435,92221.0,92214.0,0.021688]
[1732050542450,0.21686,92225.0,92216.0,0.021688]
[1732050542670,0.21686,92225.0,92217.0,0.021687]
[1732050542881,0.10906255,92226.0,92218.0,0.021687]
[1732050543098,0.108432,92224.0,92217.0,0.021687]
[1732050543318,0.108436,92220.0,92214.0,0.021688]
[1732050543776,0.10906255,92226.0,92216.0,0.021688]
[1732050544248,0.108429,92226.0,92219.0,0.021687]
[1732050544453,0.108429,92226.0,92201.0,0.009849]
[1732050544454,0.0345983,92233.0,92231.0,0.021684]
[1732050544677,0.216824,92241.0,92202.0,0.10906255]
[1732050544678,0.108414,92239.0,92233.0,0.021684]
[1732050544941,0.03558095,92235.0,92223.0,0.021686]
[1732050545169,0.108422,92232.0,92225.0,0.021686]
[1732050545425,0.03317265,92239.0,92223.0,0.021686]
[1732050545426,0.10842,92234.0,92223.0,0.021686]
[1732050545845,0.216832,92237.0,92226.0,0.021685]
[1732050545846,0.325252,92236.0,92226.0,0.021685]
[1732050546064,0.108419,92235.0,92228.0,0.021685]
[1732050546699,0.108419,92235.0,92228.0,0.04337]
[1732050546903,0.10842,92234.0,92228.0,0.021685]
[1732050547104,0.10842,92234.0,92228.0,0.04337]
[1732050547587,0.216835,92236.0,92225.0,0.021685]
[1732050547797,0.108432,92224.0,92214.0,0.0098272]
[1732050548034,0.216872,92220.0,92203.0,0.0008541]
[1732050548245,0.32593455,92220.0,92204.0,0.021691]
[1732050548464,0.0017082,92235.0,92205.0,0.10906255]
[1732050548703,0.10906255,92220.0,92203.0,0.0008541]
[1732050548909,0.10906255,92220.0,92208.0,0.021689]
[1732050549111,0.216877,92218.0,92209.0,0.021689]
[1732050549345,0.108441,92216.0,92209.0,0.021689]
[1732050549554,0.108441,92216.0,92210.0,0.021689]
[1732050549973,0.108441,92216.0,92209.0,0.021689]
[1732050550181,0.108441,92216.0,92210.0,0.021689]
[1732050550387,0.108436,92221.0,92210.0,0.021689]
[1732050550623,0.216856,92227.0,92218.0,0.021687]
[1732050550823,0.10843,92225.0,92221.0,0.021686]
[1732050551030,0.108431,92225.0,92220.0,0.021687]
[1732050551468,0.01,92234.0,92206.0,0.0098266]
[1732050551705,0.108423,92231.0,92207.0,0.10906255]
[1732050551911,0.216839,92234.0,92207.0,0.10906255]
[1732050551912,0.22683,92238.0,92226.0,0.021685]
[1732050552117,0.01,92238.0,92207.0,0.10906255]
[1732050552325,0.108422,92233.0,92227.0,0.021685]
[1732050552594,0.01,92238.0,92227.0,0.021685]
[1732050552595,0.108422,92232.0,92227.0,0.021685]
[1732050552810,0.01,92215.0,92207.0,0.0098636]
[1732050553036,0.216876,92219.0,92172.0,0.1]
[1732050553037,0.01,92219.0,92186.0,0.01]
[1732050553265,0.10906255,92218.0,92187.0,0.088759]
[1732050553482,0.108439,92217.0,92198.0,0.021692]
[1732050553697,0.108445,92213.0,92205.0,0.02169]
[1732050553917,0.216884,92215.0,92204.0,0.02169]
[1732050554142,0.216884,92215.0,92205.0,0.02169]
[1732050554354,0.216884,92215.0,92191.0,0.021694]
[1732050554355,0.1422352,92214.0,92191.0,0.0099034]
[1732050554575,0.108455,92204.0,92191.0,0.0099034]
[1732050554783,0.108455,92204.0,92187.0,0.0789]
[1732050554784,0.108455,92204.0,92187.0,0.100594]
[1732050554989,0.21751755,92204.0,92187.0,0.0789]
[1732050555195,0.21751755,92204.0,92191.0,0.021694]
[1732050555416,0.22751755,92204.0,92186.0,0.021695]
[1732050555634,0.22751755,92204.0,92188.0,0.021694]
[1732050555861,0.22751755,92204.0,92185.0,0.021695]
[1732050556510,0.22751755,92204.0,92188.0,0.021694]
[1732050556925,0.22751755,92204.0,92185.0,0.021695]
[1732050557126,0.22751755,92204.0,92189.0,0.021694]
[1732050557352,0.22751755,92204.0,92192.0,0.021693]
[1732050557575,0.21751755,92204.0,92194.0,0.021693]
[1732050557800,0.22751755,92204.0,92192.0,0.021693]
[1732050558040,0.21751755,92204.0,92195.0,0.021693]
[1732050558237,0.21751755,92204.0,92193.0,0.021693]
[1732050558238,0.22751755,92204.0,92191.0,0.021694]
[1732050558704,0.26262476,92204.0,92191.0,0.021694]
[1732050558931,0.26262476,92204.0,92179.0,0.0316252]
[1732050558932,0.26262476,92204.0,92179.0,0.0099292]
[1732050559148,0.06162493,92204.0,92179.0,0.0099292]
[1732050559373,0.0489,92241.0,92233.0,0.021684]
[1732050559584,0.03463569,92232.0,92231.0,0.021684]
[1732050559815,0.108411,92242.0,92232.0,0.021684]
[1732050560077,0.0759,92257.0,92234.0,0.021683]
[1732050560078,0.03552595,92236.0,92234.0,0.021683]